fUST/lending_fUST_20251129
["ID","MTS","AMOUNT","RATE_DAILY","PERIOD"]
[395051579,1764378563202,-1022.02,0.00013894,2]
[395051580,1764378563223,-867.18,0.00013894,2]
[395051581,1764378563245,-1686.8,0.00013894,2]
[395051582,1764378563266,-1605.35,0.00013894,2]
[395051583,1764378563287,-991.35,0.00013894,2]
[395051584,1764378563308,-500.0,0.00013894,2]
[395051585,1764378563330,-500.0,0.00013894,2]
[395051586,1764378563353,-518.82791902,0.00013894,2]
[395051587,1764378563375,-500.0,0.00013894,2]
[395051588,1764378563399,-500.0,0.00013894,2]
[395051589,1764378563420,-500.0,0.00013894,2]
[395051590,1764378563442,-500.0,0.00013894,2]
[395051591,1764378563463,-566.82,0.00013894,2]
[395051592,1764378563483,-500.0,0.00013894,2]
[395051593,1764378563505,-2134.08,0.00013894,2]
[395051594,1764378563525,-679.68,0.00013894,2]
[395051595,1764378563545,-500.0,0.00013894,2]
[395051596,1764378563565,-500.0,0.00013894,2]
[395051597,1764378563586,-266.2342484,0.00013894,2]
[395051598,1764378563940,190.42917465,0.00012521,2]
[395051599,1764378566111,-500.0,0.00013696,2]
[395051600,1764378566134,-216.38,0.00013698,2]
[395051601,1764378566886,150.33426329,0.00013559,2]
[395051602,1764378631170,200.0,0.00021173,120]
[395051628,1764378632050,-300.0,0.00013697,2]
[395051630,1764378632061,-263.0,0.00013697,2]
[395051632,1764378632071,-283.62,0.00013698,2]
[395051634,1764378632081,-500.0,0.00013698,2]
[395051636,1764378632090,-5765.87,0.00013698,2]
[395051638,1764378632099,-523.48,0.00013698,2]
[395051640,1764378632108,-849.63,0.00013698,2]
[395051642,1764378632118,-807.08,0.00013698,2]
[395051644,1764378632127,-5915.6,0.00013698,2]
[395051646,1764378632136,-1538.47,0.00013698,2]
[395051648,1764378632145,-500.0,0.00013698,2]
[395051650,1764378632154,-1794.85,0.00013698,2]
[395051652,1764378632164,-1700.81,0.00013698,2]
[395051653,1764378632173,-651.36,0.00013698,2]
[395051654,1764378632183,-500.0,0.00013698,2]
[395051655,1764378632192,-1730.66,0.00013698,2]
[395051656,1764378632201,-500.0,0.00013698,2]
[395051657,1764378632210,-628.56,0.00013698,2]
[395051658,1764378632219,-483.69542839,0.00013698,2]
[395051659,1764378632228,-194.72792766,0.00013886,2]
[395051660,1764378632237,-500.0,0.00013894,2]
[395051661,1764378632247,-233.7657516,0.00013894,2]
[395051662,1764378632256,-500.0,0.00013894,2]
[395051663,1764378632265,-500.0,0.00013894,2]
[395051664,1764378632274,-500.0,0.00013894,2]
[395051665,1764378632284,-500.0,0.00013894,2]
[395051666,1764378632292,-500.0,0.00013894,2]
[395051667,1764378632302,-543.24,0.00013894,2]
[395051668,1764378632311,-500.0,0.00013894,2]
[395051669,1764378632320,-500.0,0.00013894,2]
[395051670,1764378632329,-500.0,0.00013894,2]
[395051671,1764378632338,-511.33,0.00013894,2]
[395051672,1764378632347,-500.0,0.00013894,2]
[395051673,1764378632357,-500.0,0.00013894,2]
[395051674,1764378632366,-500.0,0.00013894,2]
[395051675,1764378632375,-500.0,0.00013894,2]
[395051676,1764378632384,-151.5953604,0.00013894,2]
[395051677,1764378632394,-500.0,0.00013894,2]
[395051678,1764378632403,-151.31247935,0.00013894,2]
[395051679,1764378632413,-500.0,0.00013894,2]
[395051680,1764378632422,-151.0,0.00013894,2]
[395051681,1764378632431,-500.0,0.00013894,2]
[395051682,1764378632441,-500.0,0.00013894,2]
[395051683,1764378632450,-500.0,0.00013894,2]
[395051684,1764378632460,-151.0,0.00013894,2]
[395051685,1764378632469,-500.0,0.00013894,2]
[395051686,1764378632478,-151.0,0.00013894,2]
[395051687,1764378632487,-500.0,0.00013894,2]
[395051688,1764378632497,-500.0,0.00013894,2]
[395051690,1764378632505,-500.0,0.00013894,2]
[395051691,1764378632514,-500.0,0.00013894,2]
[395051692,1764378632523,-500.0,0.00013894,2]
[395051694,1764378632533,-500.0,0.00013894,2]
[395051696,1764378632542,-500.0,0.00013894,2]
[395051698,1764378632551,-500.0,0.00013894,2]
[395051700,1764378632561,-500.0,0.00013894,2]
[395051702,1764378632570,-151.0,0.00013894,2]
[395051704,1764378632579,-4790.34,0.00013894,2]
[395051706,1764378632588,-500.0,0.00013894,2]
[395051708,1764378632597,-547.93468791,0.00013894,2]
[395051710,1764378632606,-151.32374515,0.00013894,2]
[395051712,1764378632615,-151.0,0.00013894,2]
[395051714,1764378632625,-500.0,0.00013894,2]
[395051716,1764378632634,-521.33,0.00013894,2]
[395051718,1764378632646,-555.56,0.00013894,2]
[395051721,1764378632655,-500.0,0.00013894,2]
[395051723,1764378632664,-500.0,0.00013894,2]
[395051725,1764378632675,-500.0,0.00013894,2]
[395051726,1764378632685,-500.0,0.00013894,2]
[395051729,1764378632695,-1763.09,0.00013894,2]
[395051731,1764378632704,-500.0,0.00013894,2]
[395051733,1764378632715,-500.0,0.00013894,2]
[395051734,1764378632724,-500.0,0.00013894,2]
[395051737,1764378632735,-500.0,0.00013894,2]
[395051739,1764378632744,-500.0,0.00013894,2]
[395051740,1764378632753,-500.0,0.00013894,2]
[395051743,1764378632763,-1386.0,0.00013894,2]
[395051744,1764378632773,-1116.76,0.00013894,2]
[395051747,1764378632782,-500.0,0.00013894,2]
[395051749,1764378632792,-500.0,0.00013894,2]
[395051751,1764378632802,-500.0,0.00013894,2]
[395051752,1764378632811,-500.0,0.00013894,2]
[395051755,1764378632821,-500.0,0.00013894,2]
[395051756,1764378632830,-500.0,0.00013894,2]
[395051758,1764378632840,-500.0,0.00013894,2]
[395051761,1764378632850,-500.0,0.00013894,2]
[395051763,1764378632859,-500.0,0.00013894,2]
[395051765,1764378632870,-929.75,0.00013894,2]
[395051767,1764378632879,-500.0,0.00013894,2]
[395051769,1764378632888,-542.87556683,0.00013894,2]
[395051771,1764378632897,-500.0,0.00013894,2]
[395051773,1764378632907,-500.0,0.00013894,2]
[395051775,1764378632917,-500.0,0.00013894,2]
[395051777,1764378632926,-500.0,0.00013894,2]
[395051779,1764378632936,-500.0,0.00013894,2]
[395051781,1764378632946,-500.0,0.00013894,2]
[395051783,1764378632959,-500.0,0.00013894,2]
[395051785,1764378632968,-500.0,0.00013894,2]
[395051787,1764378632977,-500.0,0.00013894,2]
[395051789,1764378632987,-500.0,0.00013894,2]
[395051791,1764378632997,-3006.88,0.00013894,2]
[395051793,1764378633006,-500.0,0.00013894,2]
[395051794,1764378633016,-630.14,0.00013894,2]
[395051796,1764378633025,-500.0,0.00013894,2]
[395051798,1764378633035,-500.0,0.00013894,2]
[395051800,1764378633044,-832.79,0.00013894,2]
[395051802,1764378633054,-500.0,0.00013894,2]
[395051804,1764378633063,-500.0,0.00013894,2]
[395051806,1764378633073,-500.0,0.00013894,2]
[395051808,1764378633083,-1604.37,0.00013894,2]
[395051810,1764378633093,-500.0,0.00013894,2]
[395051812,1764378633103,-500.0,0.00013894,2]
[395051815,1764378633113,-500.0,0.00013894,2]
[395051817,1764378633123,-586.28,0.00013894,2]
[395051818,1764378633132,-500.0,0.00013894,2]
[395051820,1764378633141,-500.0,0.00013894,2]
[395051822,1764378633151,-153.24300351,0.00013894,2]
[395051824,1764378633160,-632.87,0.00013894,2]
[395051826,1764378633170,-500.0,0.00013894,2]
[395051828,1764378633180,-519.86,0.00013894,2]
[395051830,1764378633189,-500.0,0.00013894,2]
[395051832,1764378633199,-500.0,0.00013894,2]
[395051834,1764378633208,-500.0,0.00013894,2]
[395051836,1764378633217,-500.0,0.00013894,2]
[395051838,1764378633227,-500.0,0.00013894,2]
[395051840,1764378633236,-151.96260396,0.00013894,2]
[395051843,1764378633246,-500.0,0.00013894,2]
[395051845,1764378633256,-500.0,0.00013894,2]
[395051846,1764378633265,-500.0,0.00013894,2]
[395051848,1764378633275,-500.0,0.00013894,2]
[395051850,1764378633285,-500.0,0.00013894,2]
[395051852,1764378633295,-223.0189981,0.00013894,2]
[395051855,1764378633305,-500.0,0.00013894,2]
[395051856,1764378633314,-500.0,0.00013894,2]
[395051858,1764378633323,-151.0,0.00013895,2]
[395051860,1764378633335,-500.0,0.00013895,2]
[395051862,1764378633345,-500.0,0.00013895,2]
[395051865,1764378633355,-500.0,0.00013895,2]
[395051866,1764378633365,-500.0,0.00013895,2]
[395051868,1764378633374,-500.0,0.00013895,2]
[395051870,1764378633384,-151.0,0.00013895,2]
[395051872,1764378633394,-151.48695744,0.00013895,2]
[395051874,1764378633404,-500.0,0.00013895,2]
[395051875,1764378633413,-151.0,0.00013895,2]
[395051876,1764378633423,-151.0,0.00013895,2]
[395051877,1764378633433,-2032.64,0.00013895,2]
[395051878,1764378633442,-544.9,0.00013895,2]
[395051879,1764378633451,-500.0,0.00013895,2]
[395051880,1764378633460,-1362.02,0.00013895,2]
[395051881,1764378633470,-727.34,0.00013895,2]
[395051882,1764378633479,-1043.92,0.00013895,2]
[395051884,1764378633488,-2586.27,0.00013895,2]
[395051886,1764378633497,-500.0,0.00013895,2]
[395051888,1764378633506,-507.27,0.00013895,2]
[395051889,1764378633515,-1599.63,0.00013895,2]
[395051891,1764378633524,-2567.39,0.00013895,2]
[395051892,1764378633536,-880.86,0.00013895,2]
[395051894,1764378633545,-2691.59,0.00013895,2]
[395051896,1764378633554,-500.0,0.00013895,2]
[395051897,1764378633563,-500.0,0.00013895,2]
[395051899,1764378633573,-500.0,0.00013895,2]
[395051901,1764378633582,-500.0,0.00013895,2]
[395051902,1764378633591,-923.6,0.00013895,2]
[395051903,1764378633600,-2830.89,0.00013895,2]
[395051905,1764378633610,-500.0,0.00013895,2]
[395051906,1764378633619,-500.0,0.00013895,2]
[395051907,1764378633628,-1879.78,0.00013972,2]
[395051908,1764378633637,-500.0,0.00013972,2]
[395051909,1764378633647,-500.0,0.00013972,2]
[395051910,1764378633656,-892.67,0.00013972,2]
[395051911,1764378633666,-500.0,0.00013972,2]
[395051912,1764378633675,-774.53,0.00013972,2]
[395051913,1764378633684,-1101.68,0.00013972,2]
[395051914,1764378633694,-500.0,0.00013972,2]
[395051915,1764378633703,-2809.09,0.00013972,2]
[395051916,1764378633712,-500.0,0.00013972,2]
[395051917,1764378633722,-643.87,0.00013972,2]
[395051918,1764378633731,-769.9,0.00013972,2]
[395051919,1764378633740,-2592.08,0.00013972,2]
[395051920,1764378633749,-1399.92,0.00013972,2]
[395051921,1764378633759,-1840.63,0.00013972,2]
[395051922,1764378633769,-500.0,0.00013972,2]
[395051923,1764378633779,-2314.46,0.00013972,2]
[395051924,1764378633788,-4085.32,0.00013972,2]
[395051925,1764378633797,-1061.31,0.00013972,2]
[395051926,1764378633806,-420.93401822,0.00013972,2]
[395051927,1764378633815,-500.0,0.00013972,2]
[395051928,1764378633824,-500.0,0.00013972,2]
[395051929,1764378633834,-1816.47,0.00013972,2]
[395051930,1764378633843,-500.0,0.00013972,2]
[395051931,1764378633852,-500.0,0.00013972,2]
[395051932,1764378633862,-5765.87,0.00013972,2]
[395051933,1764378633872,-523.48,0.00013972,2]
[395051934,1764378633881,-849.63,0.00013972,2]
[395051935,1764378633890,-807.08,0.00013972,2]
[395051936,1764378633899,-5915.6,0.00013972,2]
[395051937,1764378633909,-1538.47,0.00013972,2]
[395051938,1764378633918,-500.0,0.00013972,2]
[395051939,1764378633928,-1794.85,0.00013972,2]
[395051940,1764378633939,-1700.81,0.00013972,2]
[395051941,1764378633953,-651.36,0.00013972,2]
[395051942,1764378633963,-500.0,0.00013972,2]
[395051943,1764378633972,-1730.66,0.00013972,2]
[395051944,1764378633982,-500.0,0.00013972,2]
[395051945,1764378633992,-628.56,0.00013972,2]
[395051946,1764378634001,-151.0,0.00014031,2]
[395051947,1764378634011,-500.0,0.00014031,2]
[395051948,1764378634021,-151.0,0.00014031,2]
[395051949,1764378634031,-151.0,0.00014031,2]
[395051950,1764378634040,-500.0,0.00014031,2]
[395051951,1764378634050,-500.0,0.00014031,2]
[395051952,1764378634059,-500.0,0.00014031,2]
[395051953,1764378634068,-151.0,0.00014031,2]
[395051954,1764378634077,-500.0,0.00014031,2]
[395051955,1764378634086,-151.0,0.00014031,2]
[395051956,1764378634096,-500.0,0.00014031,2]
[395051957,1764378634105,-500.0,0.00014031,2]
[395051958,1764378634115,-500.0,0.00014031,2]
[395051959,1764378634124,-500.0,0.00014031,2]
[395051960,1764378634133,-500.0,0.00014031,2]
[395051961,1764378634142,-151.0,0.00014032,2]
[395051962,1764378634151,-500.0,0.00014032,2]
[395051963,1764378634160,-500.0,0.00014032,2]
[395051964,1764378634170,-500.0,0.00014032,2]
[395051965,1764378634179,-500.0,0.00014032,2]
[395051966,1764378634190,-500.0,0.00014032,2]
[395051967,1764378634199,-151.0,0.00014032,2]
[395051968,1764378634209,-500.0,0.00014032,2]
[395051969,1764378634218,-151.0,0.00014032,2]
[395051970,1764378634228,-151.0,0.00014032,2]
[395051971,1764378634237,-500.0,0.00014089,2]
[395051972,1764378634247,-500.0,0.00014089,2]
[395051973,1764378634256,-501.72280862,0.00014089,2]
[395051974,1764378634265,-185.29544837,0.00014089,2]
[395051975,1764378634275,-500.0,0.00014089,2]
[395051976,1764378634284,-500.0,0.00014089,2]
[395051977,1764378634294,-151.0,0.000141,2]
[395051978,1764378634304,-151.0,0.000141,2]
[395051979,1764378634313,-500.0,0.00014168,2]
[395051980,1764378634323,-151.0,0.00014168,2]
[395051981,1764378634332,-500.0,0.00014168,2]
[395051982,1764378634342,-151.0,0.00014168,2]
[395051983,1764378634351,-151.0,0.00014168,2]
[395051984,1764378634360,-500.0,0.00014168,2]
[395051985,1764378634370,-500.0,0.00014168,2]
[395051986,1764378634379,-500.0,0.00014168,2]
[395051987,1764378634389,-207.7996926,0.00014168,2]
[395051988,1764378634398,-500.0,0.00014168,2]
[395051989,1764378634407,-151.0,0.00014168,2]
[395051990,1764378634417,-500.0,0.00014168,2]
[395051991,1764378634426,-500.0,0.00014168,2]
[395051992,1764378634435,-500.0,0.00014168,2]
[395051993,1764378634444,-500.0,0.00014168,2]
[395051994,1764378634453,-209.97796445,0.00014168,2]
[395051995,1764378634463,-566.38576815,0.00014168,2]
[395051996,1764378634472,-500.0,0.00014168,2]
[395051997,1764378634481,-500.0,0.00014168,2]
[395051998,1764378634491,-321.21057886,0.00014168,2]
[395051999,1764378634500,-505.2,0.00014168,2]
[395052000,1764378634509,-500.0,0.00014168,2]
[395052001,1764378634519,-1811.15,0.00014168,2]
[395052002,1764378634528,-500.0,0.00014168,2]
[395052003,1764378634538,-500.0,0.00014168,2]
[395052004,1764378634547,-500.0,0.00014168,2]
[395052005,1764378634557,-500.0,0.00014168,2]
[395052006,1764378634566,-500.0,0.00014168,2]
[395052007,1764378634575,-500.0,0.00014168,2]
[395052008,1764378634585,-500.0,0.00014168,2]
[395052009,1764378634594,-500.0,0.00014168,2]
[395052010,1764378634603,-500.0,0.00014168,2]
[395052011,1764378634613,-500.0,0.00014168,2]
[395052012,1764378634622,-500.0,0.00014168,2]
[395052013,1764378634631,-139.40121043,0.00014168,2]
[395052039,1764378638112,-320.79809729,0.00013698,2]
[395052051,1764378639466,-497.48190271,0.00013698,2]
[395052052,1764378639475,-500.0,0.00013894,2]
[395052053,1764378639484,-547.10320647,0.00013894,2]
[395052054,1764378639493,-500.0,0.00013894,2]
[395052055,1764378639502,-500.0,0.00013894,2]
[395052056,1764378639511,-500.0,0.00013894,2]
[395052057,1764378639519,-589.96,0.00013895,2]
[395052058,1764378639528,-151.0,0.00013972,2]
[395052059,1764378639537,-818.28,0.00013972,2]
[395052060,1764378639545,-360.59878957,0.00014168,2]
[395052061,1764378639554,-500.0,0.00014168,2]
[395052062,1764378639562,-500.0,0.00014168,2]
[395052063,1764378639571,-500.0,0.00014168,2]
[395052064,1764378639580,-522.53,0.00014168,2]
[395052065,1764378639589,-500.0,0.00014168,2]
[395052066,1764378639598,-500.0,0.00014168,2]
[395052067,1764378639606,-1310.65,0.00014168,2]
[395052068,1764378639615,-500.0,0.00014168,2]
[395052069,1764378639624,-500.0,0.00014168,2]
[395052070,1764378639633,-500.0,0.00014168,2]
[395052071,1764378639641,-513.41,0.00014168,2]
[395052072,1764378639651,-780.85,0.00014168,2]
[395052073,1764378639659,-500.0,0.00014168,2]
[395052074,1764378639668,-500.0,0.00014168,2]
[395052075,1764378639677,-500.0,0.00014168,2]
[395052076,1764378639686,-500.0,0.00014168,2]
[395052077,1764378639695,-500.0,0.00014168,2]
[395052078,1764378639704,-500.0,0.00014168,2]
[395052079,1764378639713,-219.08849563,0.00014168,2]
[395052080,1764378639722,-500.0,0.00014168,2]
[395052081,1764378639730,-500.0,0.00014168,2]
[395052082,1764378639739,-500.0,0.00014168,2]
[395052083,1764378639748,-500.0,0.00014168,2]
[395052084,1764378639757,-500.0,0.00014168,2]
[395052085,1764378639766,-506.32,0.00014168,2]
[395052086,1764378639775,-563.74,0.00014168,2]
[395052087,1764378639784,-167.06324807,0.00014168,2]
[395052088,1764378639793,-500.0,0.00014168,2]
[395052089,1764378639802,-500.0,0.00014168,2]
[395052090,1764378639811,-377.08464389,0.00014168,2]
[395052091,1764378639820,-500.0,0.00014168,2]
[395052092,1764378639830,-500.0,0.00014168,2]
[395052093,1764378639839,-500.0,0.00014168,2]
[395052094,1764378639849,-576.76,0.00014168,2]
[395052095,1764378639858,-500.0,0.00014168,2]
[395052096,1764378639869,-661.43,0.00014168,2]
[395052097,1764378639878,-500.0,0.00014168,2]
[395052098,1764378639887,-500.0,0.00014168,2]
[395052099,1764378639897,-978.99,0.00014168,2]
[395052100,1764378639907,-1022.02,0.00014168,2]
[395052101,1764378639916,-867.18,0.00014168,2]
[395052102,1764378639925,-1686.8,0.00014168,2]
[395052103,1764378639935,-991.35,0.00014168,2]
[395052104,1764378639944,-500.0,0.00014168,2]
[395052105,1764378639956,-500.0,0.00014168,2]
[395052106,1764378639965,-566.82,0.00014168,2]
[395052107,1764378639975,-2134.08,0.00014168,2]
[395052108,1764378639985,-500.0,0.00014168,2]
[395052109,1764378639995,-396.49610092,0.00014168,2]
[395052110,1764378640004,-543.24,0.00014168,2]
[395052111,1764378640013,-500.0,0.00014168,2]
[395052112,1764378640022,-511.33,0.00014168,2]
[395052113,1764378640033,-500.0,0.00014168,2]
[395052114,1764378640044,-500.0,0.00014168,2]
[395052115,1764378640053,-500.0,0.00014168,2]
[395052116,1764378640063,-500.0,0.00014168,2]
[395052117,1764378640072,-500.0,0.00014168,2]
[395052118,1764378640081,-500.0,0.00014168,2]
[395052120,1764378640091,-500.0,0.00014168,2]
[395052122,1764378640099,-500.0,0.00014168,2]
[395052123,1764378640109,-500.0,0.00014168,2]
[395052124,1764378640118,-4790.34,0.00014168,2]
[395052125,1764378640128,-500.0,0.00014168,2]
[395052126,1764378640138,-521.33,0.00014168,2]
[395052127,1764378640147,-555.56,0.00014168,2]
[395052128,1764378640157,-1763.09,0.00014168,2]
[395052129,1764378640166,-500.0,0.00014168,2]
[395052130,1764378640176,-500.0,0.00014168,2]
[395052131,1764378640185,-500.0,0.00014168,2]
[395052132,1764378640195,-500.0,0.00014168,2]
[395052133,1764378640204,-500.0,0.00014168,2]
[395052134,1764378640213,-1386.0,0.00014168,2]
[395052135,1764378640222,-1116.76,0.00014168,2]
[395052136,1764378640232,-500.0,0.00014168,2]
[395052137,1764378640242,-500.0,0.00014168,2]
[395052138,1764378640251,-500.0,0.00014168,2]
[395052139,1764378640260,-486.97675048,0.00014168,2]
[395052140,1764378640270,-397.12129202,0.00014168,2]
[395052141,1764378640279,-929.75,0.00014168,2]
[395052142,1764378640289,-500.0,0.00014168,2]
[395052143,1764378640299,-500.0,0.00014168,2]
[395052144,1764378640308,-500.0,0.00014168,2]
[395052145,1764378640317,-500.0,0.00014168,2]
[395052146,1764378640326,-500.0,0.00014168,2]
[395052147,1764378640336,-500.0,0.00014168,2]
[395052148,1764378640345,-500.0,0.00014168,2]
[395052149,1764378640355,-3006.88,0.00014168,2]
[395052150,1764378640364,-500.0,0.00014168,2]
[395052151,1764378640373,-630.14,0.00014168,2]
[395052152,1764378640382,-500.0,0.00014168,2]
[395052153,1764378640392,-832.79,0.00014168,2]
[395052154,1764378640401,-500.0,0.00014168,2]
[395052155,1764378640411,-500.0,0.00014168,2]
[395052156,1764378640420,-1604.37,0.00014168,2]
[395052157,1764378640429,-586.28,0.00014168,2]
[395052158,1764378640439,-632.87,0.00014168,2]
[395052159,1764378640448,-500.0,0.00014168,2]
[395052160,1764378640457,-519.86,0.00014168,2]
[395052161,1764378640467,-592.37356752,0.00014168,2]
[395052162,1764378640476,-500.0,0.00014168,2]
[395052163,1764378640485,-500.0,0.00014168,2]
[395052164,1764378640494,-500.0,0.00014168,2]
[395052165,1764378640504,-500.0,0.00014168,2]
[395052166,1764378640513,-151.0,0.00014168,2]
[395052167,1764378640522,-500.0,0.00014168,2]
[395052168,1764378640531,-500.0,0.00014168,2]
[395052169,1764378640541,-251.06089208,0.00014169,2]
[395052170,1764378640550,-500.0,0.00014169,2]
[395052171,1764378640559,-272.45960631,0.00014169,2]
[395052172,1764378640568,-500.0,0.00014169,2]
[395052173,1764378640576,-500.0,0.00014169,2]
[395052174,1764378640586,-170.83599058,0.00014169,2]
[395052175,1764378640595,-151.0,0.00014169,2]
[395052176,1764378640604,-500.0,0.00014169,2]
[395052177,1764378640614,-153.05862465,0.00014169,2]
[395052178,1764378640623,-151.0,0.00014169,2]
[395052179,1764378640632,-906.52754897,0.00014169,2]
[395052180,1764378640912,-1126.11245103,0.00014169,2]
[395052181,1764378640922,-544.9,0.00014169,2]
[395052182,1764378640931,-500.0,0.00014169,2]
[395052183,1764378640940,-727.34,0.00014169,2]
[395052184,1764378640950,-1043.92,0.00014169,2]
[395052185,1764378640961,-2586.27,0.00014169,2]
[395052186,1764378640970,-500.0,0.00014169,2]
[395052187,1764378640980,-507.27,0.00014169,2]
[395052188,1764378640989,-1599.63,0.00014169,2]
[395052189,1764378640998,-2567.39,0.00014169,2]
[395052190,1764378641008,-880.86,0.00014169,2]
[395052191,1764378641017,-2691.59,0.00014169,2]
[395052192,1764378641026,-500.0,0.00014169,2]
[395052193,1764378641035,-500.0,0.00014169,2]
[395052194,1764378641044,-923.6,0.00014169,2]
[395052195,1764378641053,-2830.89,0.00014169,2]
[395052196,1764378641062,-589.96,0.00014169,2]
[395052197,1764378641071,-151.0,0.000142,2]
[395052198,1764378641081,-151.0,0.000142,2]
[395052199,1764378641090,-1879.78,0.00014246,2]
[395052200,1764378641099,-500.0,0.00014246,2]
[395052201,1764378641109,-500.0,0.00014246,2]
[395052202,1764378641118,-500.0,0.00014246,2]
[395052203,1764378641127,-774.53,0.00014246,2]
[395052204,1764378641136,-1101.68,0.00014246,2]
[395052205,1764378641145,-500.0,0.00014246,2]
[395052206,1764378641154,-2809.09,0.00014246,2]
[395052207,1764378641163,-500.0,0.00014246,2]
[395052208,1764378641172,-643.87,0.00014246,2]
[395052209,1764378641182,-769.9,0.00014246,2]
[395052210,1764378641191,-2592.08,0.00014246,2]
[395052211,1764378641200,-1399.92,0.00014246,2]
[395052212,1764378641209,-1840.63,0.00014246,2]
[395052213,1764378641218,-500.0,0.00014246,2]
[395052214,1764378641227,-2314.46,0.00014246,2]
[395052215,1764378641237,-4085.32,0.00014246,2]
[395052216,1764378641448,-1061.31,0.00014246,2]
[395052217,1764378641458,-500.0,0.00014246,2]
[395052218,1764378641468,-500.0,0.00014246,2]
[395052219,1764378641478,-1816.47,0.00014246,2]
[395052220,1764378641489,-500.0,0.00014246,2]
[395052221,1764378641499,-500.0,0.00014246,2]
[395052222,1764378641509,-5765.87,0.00014246,2]
[395052223,1764378641518,-523.48,0.00014246,2]
[395052224,1764378641527,-849.63,0.00014246,2]
[395052225,1764378641535,-807.08,0.00014246,2]
[395052226,1764378641544,-5915.6,0.00014246,2]
[395052227,1764378641554,-1538.47,0.00014246,2]
[395052228,1764378641564,-500.0,0.00014246,2]
[395052229,1764378641573,-1794.85,0.00014246,2]
[395052230,1764378641582,-1700.81,0.00014246,2]
[395052231,1764378641592,-651.36,0.00014246,2]
[395052232,1764378641602,-500.0,0.00014246,2]
[395052233,1764378641612,-1730.66,0.00014246,2]
[395052234,1764378641622,-500.0,0.00014246,2]
[395052235,1764378641632,-628.56,0.00014246,2]
[395052236,1764378641643,-818.28,0.00014246,2]
[395052237,1764378641653,-151.0,0.000143,2]
[395052238,1764378641663,-151.0,0.000143,2]
[395052239,1764378641673,-151.0,0.000143,2]
[395052240,1764378641683,-230.55185898,0.00014305,2]
[395052241,1764378641693,-500.0,0.00014305,2]
[395052242,1764378641704,-176.72489047,0.00014305,2]
[395052243,1764378641715,-151.0,0.00014305,2]
[395052244,1764378641725,-500.0,0.00014305,2]
[395052245,1764378641737,-500.0,0.00014305,2]
[395052246,1764378641747,-500.0,0.00014305,2]
[395052247,1764378641757,-319.1219405,0.00014305,2]
[395052248,1764378641767,-285.44289036,0.00014305,2]
[395052249,1764378641776,-500.0,0.00014305,2]
[395052250,1764378641786,-500.0,0.00014305,2]
[395052251,1764378641796,-301.03076821,0.00014305,2]
[395052252,1764378641804,-209.97796445,0.00014305,2]
[395052253,1764378641814,-500.45578962,0.00014306,2]
[395052254,1764378641824,-500.0,0.00014306,2]